[Event "28th CRO-chT 1B-Men 2019"]
[Site "Mali Losinj"]
[Date "2019.10.02"]
[Round "5.4"]
[White "Malenica, Mario"]
[Black "Bukal, Vladimir Jr."]
[Result "1-0"]
[ECO "A30"]
[WhiteElo "2221"]
[BlackElo "2390"]
[Annotator "NA"]
[PlyCount "89"]
[EventDate "2019.09.28"]
[EventType "team-tourn"]
[EventCountry "CRO"]
[SourceTitle "playchess.com"]
[Source "ChessBase"]
[SourceQuality "1"]
[TimeControl "40/5400+30:1800+30"]

1. Nf3 {[%emt 0:00:30]} b6 {[%emt 0:00:30]} 2. g3 {[%emt 0:01:30]} Bb7 {[%emt 0:00:30]} 3. Bg2 {[%emt 0:00:30]} g6 {[%emt 0:02:30]} 4. c4 {[%emt 0:02:30]} Bg7 {[%emt 0:00:30]} 5. Nc3 {[%emt 0:00:30]} Nf6 {[%emt 0:00:30]} 6. O-O {[%emt 0:02:30]} O-O {[%emt 0:00:30]} 7. Qc2 {[%emt 0:04:30]} c5 {[%emt 0:02:30]} 8. e3 {[%emt 0:04:30]} a6 {[%emt 0:06:30]} 9. d4 {[%emt 0:05:30]} d6 {[%emt 0:04:30]} 10. b3 {[%emt 0:04:30]} Nbd7 {[%emt 0:06:30]} 11. Bb2 {[%emt 0:02:30]} Qc7 {[%emt 0:04:30]} 12. d5 {[%emt 0:11:30]} b5 {[%emt 0:01:30]} 13. e4 {[%emt 0:07:30]} bxc4 {[%emt 0:05:30]} 14. bxc4 {[%emt 0:00:30]} Rab8 {[%emt 0:00:30]} 15. Na4 {[%emt 0:04:30]} e6 {[%emt 0:12:30]} 16. Rfe1 {[%emt 0:07:30]} e5 {[%emt 0:03:30]} 17. Rab1 {[%emt 0:04:30]} Bc8 {[%emt 0:08:30]} 18. Bc3 {[%emt 0:00:30]} Rxb1 {[%emt 0:01:30]} 19. Rxb1 {[%emt 0:00:30]} Qd8 {[%emt 0:00:30]} 20. Ne1 {[%emt 0:02:30]} Ng4 {[%emt 0:04:30]} 21. h3 {[%emt 0:04:30]} Nh6 {[%emt 0:00:30]} 22. Nd3 {[%emt 0:07:30]} f5 {[%emt 0:00:30]} 23. f3 {[%emt 0:04:32]} fxe4 {[%emt 0:07:30]} 24. fxe4 {[%emt 0:00:05]} Qg5 {[%emt 0:00:30]} 25. Be1 {[%emt 0:00:06]} Nf7 {[%emt 0:03:30]} 26. Kh2 {[%emt 0:03:29]} Bh6 {[%emt 0:03:40]} 27. Qe2 {[%emt 0:02:00]} Nf6 {[%emt 0:06:43]} 28. Rb8 {[%emt 0:04:33]} Bg4 {[%emt 0:01:03]} 29. Rxf8+ {[%emt 0:00:12]} Kxf8 {[%emt 0:01:20]} 30. hxg4 {[%emt 0:02:00]} Nxg4+ {[%emt 0:00:07]} 31. Kg1 {[%emt 0:00:11]} Qh5 {[%emt 0:01:27]} 32. Bf3 {[%emt 0:04:43]} Be3+ {[%emt 0:00:25]} 33. Kf1 {[%emt 0:00:12]} Bd4 {[%emt 0:07:31]} 34. Bf2 {[%emt 0:01:14]} Ng5 {[%emt 0:01:55]} 35. Ke1 {[%emt 0:02:01]} Kg7 {[%emt 0:01:26]} 36. Bxg4 {[%emt 0:00:35]} Qh1+ {[%emt 0:00:06]} 37. Kd2 {[%emt 0:00:52]} Nxe4+ {[%emt 0:00:27]} 38. Kc2 {[%emt 0:00:12]} Nxf2 {[%emt 0:01:49]} 39. Nxf2 {[%emt 0:00:23]} Qa1 {[%emt 0:00:05]} 40. Kb3 {[%emt 0:00:00]} Qb1+ {[%emt 0:00:00]} 41. Nb2 {[%emt 0:03:10]} Qc1 {[%emt 0:11:56]} 42. Nfd1 {[%emt 0:02:30]} Qg5 {[%emt 0:00:30]} 43. Qf3 {[%emt 0:01:30]} Qe7 {[%emt 0:01:14]} 44. Be6 {[%emt 0:01:30]} h5 {[%emt 0:00:07]} 45. Kc2 {[%emt 0:01:30]} 1-0

[Event "28th CRO-chT 1B-Men 2019"]
[Site "Mali Losinj"]
[Date "2019.10.02"]
[Round "5.6"]
[White "Tesla, Miro"]
[Black "Antunac, Goran"]
[Result "0-1"]
[ECO "E90"]
[WhiteElo "2073"]
[BlackElo "2379"]
[Annotator "NA"]
[PlyCount "154"]
[EventDate "2019.09.28"]
[EventType "team-tourn"]
[EventCountry "CRO"]
[SourceTitle "playchess.com"]
[Source "ChessBase"]
[SourceQuality "1"]
[TimeControl "40/5400+30:1800+30"]

1. d4 {[%emt 0:00:30]} Nf6 {[%emt 0:00:30]} 2. c4 {[%emt 0:00:30]} c5 {[%emt 0:00:30]} 3. d5 {[%emt 0:00:00]} g6 {[%emt 0:00:30]} 4. Nc3 {[%emt 0:00:00]} Bg7 {[%emt 0:00:30]} 5. e4 {[%emt 0:00:00]} d6 {[%emt 0:00:00]} 6. Bd3 {[%emt 0:00:00]} O-O {[%emt 0:01:00]} 7. h3 {[%emt 0:00:30]} Na6 {[%emt 0:01:30]} 8. Nf3 {[%emt 0:00:00]} Nc7 {[%emt 0:00:00]} 9. O-O {[%emt 0:00:00]} e6 {[%emt 0:00:00]} 10. Qb3 {[%emt 0:01:30]} Rb8 {[%emt 0:06:30]} 11. a4 {[%emt 0:06:30]} b6 {[%emt 0:06:30]} 12. Bg5 {[%emt 0:00:30]} h6 {[%emt 0:05:30]} 13. Bd2 {[%emt 0:00:30]} a6 {[%emt 0:01:30]} 14. Rae1 {[%emt 0:06:30]} exd5 {[%emt 0:24:30]} 15. exd5 {[%emt 0:02:30]} b5 {[%emt 0:01:30]} 16. axb5 {[%emt 0:04:30]} axb5 {[%emt 0:00:30]} 17. cxb5 {[%emt 0:01:30]} Na6 {[%emt 0:03:30]} 18. Bf4 {[%emt 0:03:30]} Nb4 {[%emt 0:01:30]} 19. Bb1 {[%emt 0:12:30]} Nh5 {[%emt 0:03:30]} 20. Bh2 {[%emt 0:00:30]} f5 {[%emt 0:01:30]} 21. Nd2 {[%emt 0:04:30]} Rf7 {[%emt 0:00:30]} 22. Nc4 {[%emt 0:01:30]} Bf8 {[%emt 0:00:00]} 23. Qd1 {[%emt 0:02:30]} Nf6 {[%emt 0:02:00]} 24. Re2 {[%emt 0:02:30]} g5 {[%emt 0:05:30]} 25. Rfe1 {[%emt 0:03:30]} f4 {[%emt 0:02:30]} 26. f3 {[%emt 0:04:30]} Bd7 {[%emt 0:03:30]} 27. b6 {[%emt 0:00:30]} Bc8 {[%emt 0:00:30]} 28. h4 {[%emt 0:11:30]} Ba6 {[%emt 0:03:30]} 29. b3 {[%emt 0:00:30]} Rxb6 {[%emt 0:01:30]} 30. Bg6 {[%emt 0:01:30]} Rg7 {[%emt 0:00:30]} 31. h5 {[%emt 0:00:30]} Rbb7 {[%emt 0:01:30]} 32. g3 {[%emt 0:01:30]} fxg3 {[%emt 0:02:30]} 33. Bxg3 {[%emt 0:00:30]} Rbe7 {[%emt 0:00:00]} 34. f4 {[%emt 0:07:30]} Rxe2 {[%emt 0:06:56]} 35. Rxe2 {[%emt 0:00:30]} Nxh5 {[%emt 0:01:59]} 36. Re8 {[%emt 0:05:18]} Qf6 {[%emt 0:00:01]} 37. Bxh5 {[%emt 0:02:55]} Qxc3 {[%emt 0:02:28]} 38. Qe1 {[%emt 0:04:07]} Qxe1+ {[%emt 0:01:45]} 39. Bxe1 {[%emt 0:00:04]} gxf4+ {[%emt 0:00:19]} 40. Kh2 {[%emt 0:00:44]} Re7 {[%emt 0:00:00]} 41. Nxd6 {[%emt 0:01:52]} Rxe8 {[%emt 0:11:02]} 42. Nxe8 {[%emt 0:00:00]} Nxd5 {[%emt 0:00:00]} 43. Bd2 {[%emt 0:01:00]} Be7 {[%emt 0:11:00]} 44. Bf3 {[%emt 0:01:30]} Ne3 {[%emt 0:01:30]} 45. Nc7 {[%emt 0:00:30]} Nf1+ {[%emt 0:00:41]} 46. Kg2 {[%emt 0:00:30]} Nxd2 {[%emt 0:00:19]} 47. Nxa6 {[%emt 0:00:30]} Bd6 {[%emt 0:00:30]} 48. Kf2 {[%emt 0:02:30]} Kg7 {[%emt 0:00:30]} 49. Bd5 {[%emt 0:00:30]} Kf6 {[%emt 0:00:30]} 50. Ke2 {[%emt 0:00:30]} Ke5 {[%emt 0:00:00]} 51. Bf7 {[%emt 0:04:30]} Ne4 {[%emt 0:00:00]} 52. Bg6 {[%emt 0:01:30]} Ng3+ {[%emt 0:02:23]} 53. Kf3 {[%emt 0:02:30]} Nf5 {[%emt 0:00:11]} 54. Bf7 {[%emt 0:00:30]} Nd4+ {[%emt 0:00:26]} 55. Kf2 {[%emt 0:03:30]} Ke4 {[%emt 0:00:58]} 56. Bg6+ {[%emt 0:00:30]} Kd5 {[%emt 0:00:14]} 57. Be8 {[%emt 0:01:30]} Ke6 {[%emt 0:00:33]} 58. Ba4 {[%emt 0:00:30]} Ke7 {[%emt 0:00:15]} 59. Kg2 {[%emt 0:02:30]} Kd8 {[%emt 0:00:23]} 60. Kh3 {[%emt 0:01:30]} h5 {[%emt 0:02:29]} 61. Kh4 {[%emt 0:00:30]} f3 {[%emt 0:05:49]} 62. Kh3 {[%emt 0:01:30]} h4 {[%emt 0:00:58]} 63. b4 {[%emt 0:06:23]} cxb4 {[%emt 0:00:30]} 64. Nxb4 {[%emt 0:00:33]} Bxb4 {[%emt 0:00:30]} 65. Bd1 {[%emt 0:00:01]} Be7 {[%emt 0:00:46]} 66. Ba4 {[%emt 0:00:30]} Bf6 {[%emt 0:00:00]} 67. Bd1 {[%emt 0:00:01]} Ke7 {[%emt 0:00:00]} 68. Ba4 {[%emt 0:00:39]} Kd6 {[%emt 0:00:30]} 69. Be8 {[%emt 0:00:10]} Ke5 {[%emt 0:00:44]} 70. Bh5 {[%emt 0:00:30]} Kf4 {[%emt 0:00:35]} 71. Bf7 {[%emt 0:00:30]} Ke3 {[%emt 0:00:23]} 72. Bc4 {[%emt 0:01:01]} Kd2 {[%emt 0:00:36]} 73. Kh2 {[%emt 0:00:35]} Ke1 {[%emt 0:00:08]} 74. Ba6 {[%emt 0:00:22]} f2 {[%emt 0:00:15]} 75. Kg2 {[%emt 0:00:18]} Ne2 {[%emt 0:00:07]} 76. Bxe2 {[%emt 0:00:32]} Kxe2 {[%emt 0:00:01]} 77. Kh2 {[%emt 0:00:07]} Be5+ {[%emt 0:00:07]} 0-1

[Event "28th CRO-chT 1B-Men 2019"]
[Site "Mali Losinj"]
[Date "2019.10.02"]
[Round "5.8"]
[White "Bogut, Zeljko"]
[Black "Kadric, Denis"]
[Result "0-1"]
[ECO "C41"]
[WhiteElo "2386"]
[BlackElo "2577"]
[Annotator "ChessBase"]
[PlyCount "48"]
[EventDate "2019.09.28"]
[EventType "team-tourn"]
[EventCountry "CRO"]
[SourceTitle "playchess.com"]
[Source "ChessBase"]
[SourceQuality "1"]
[TimeControl "40/5400+30:1800+30"]

1. e4 {[%emt 0:01:30]} d6 {[%emt 0:03:30]} 2. d4 {[%emt 0:01:30]} Nf6 {[%emt 0:00:00]} 3. Nc3 {[%emt 0:00:30]} Nbd7 {[%emt 0:00:00]} 4. Nf3 {[%emt 0:00:30]} e5 {[%emt 0:00:30]} 5. Bc4 {[%emt 0:00:30]} Be7 {[%emt 0:00:00]} 6. O-O {[%emt 0:00:30]} O-O {[%emt 0:00:00]} 7. Re1 {[%emt 0:01:30]} c6 {[%emt 0:00:00]} 8. a4 {[%emt 0:00:00]} exd4 {[%emt 0:00:00]} 9. Nxd4 {[%emt 0:00:00]} Ne5 {[%emt 0:00:30]} 10. Ba2 {[%emt 0:02:30]} Re8 {[%emt 0:00:00]} 11. h3 {[%emt 0:00:30]} Ng6 {[%emt 0:00:00]} 12. Qf3 {[%emt 0:08:30]} Qa5 {[%emt 0:01:30]} 13. Be3 {[%emt 0:08:30]} Bd8 {[%emt 0:01:30]} 14. Rad1 {[%emt 0:04:30]} Bc7 {[%emt 0:00:30]} 15. Nb3 {[%emt 0:03:30]} Qe5 {[%emt 0:01:30]} 16. Bd4 {[%emt 0:00:30]} Qg5 {[%emt 0:00:00]} 17. Bxf6 {[%emt 0:07:30]} gxf6 {[%emt 0:00:00]} 18. Nd2 {[%emt 0:01:30]} d5 {[%emt 0:01:30]} 19. g4 {[%emt 0:43:12]} h5 {[%emt 0:00:30]} 20. exd5 {[%emt 0:00:37]} Rxe1+ {[%emt 0:00:30]} 21. Rxe1 {[%emt 0:00:03]} Qxd2 {[%emt 0:00:00]} 22. Re8+ {[%emt 0:05:07]} Kh7 {[%emt 0:03:00]} 23. dxc6 {[%emt 0:02:52]} Be6 {[%emt 0:05:30]} 24. Rxa8 {[%emt 0:00:35]} Qe1+ {[%emt 0:00:30]} 0-1

[Event "28th CRO-chT 1B-Men 2019"]
[Site "Mali Losinj"]
[Date "2019.10.02"]
[Round "5.10"]
[White "Bender, Ivan"]
[Black "Bosnjak, Petar"]
[Result "0-1"]
[ECO "B92"]
[WhiteElo "2234"]
[BlackElo "2265"]
[Annotator "NA"]
[PlyCount "35"]
[EventDate "2019.09.28"]
[EventType "team-tourn"]
[EventCountry "CRO"]
[SourceTitle "playchess.com"]
[Source "ChessBase"]
[SourceQuality "1"]
[TimeControl "40/5400+30:1800+30"]

1. e4 {[%emt 0:00:30]} c5 {[%emt 0:00:30]} 2. Nf3 {[%emt 0:00:30]} d6 {[%emt 0:00:30]} 3. d4 {[%emt 0:00:00]} cxd4 {[%emt 0:00:00]} 4. Nxd4 {[%emt 0:00:00]} Nf6 {[%emt 0:00:00]} 5. Nc3 {[%emt 0:00:00]} a6 {[%emt 0:00:00]} 6. Be3 {[%emt 0:00:00]} e5 {[%emt 0:00:00]} 7. Nb3 {[%emt 0:06:30]} Be6 {[%emt 0:00:30]} 8. Be2 {[%emt 0:00:30]} Be7 {[%emt 0:01:30]} 9. O-O {[%emt 0:00:30]} O-O {[%emt 0:00:00]} 10. Re1 {[%emt 0:08:30]} Nbd7 {[%emt 0:02:00]} 11. h3 {[%emt 0:00:30]} Qc7 {[%emt 0:03:30]} 12. a4 {[%emt 0:03:30]} Nb6 {[%emt 0:07:30]} 13. a5 {[%emt 0:01:30]} Nc4 {[%emt 0:00:30]} 14. Bxc4 {[%emt 0:00:30]} Qxc4 {[%emt 0:02:30]} 15. Bg5 {[%emt 0:10:30]} Qc6 {[%emt 0:10:30]} 16. Nd2 {[%emt 0:05:30]} Rfd8 {[%emt 0:25:30]} 17. Qf3 {[%emt 0:15:30]} h6 {[%emt 0:08:30]} 18. Nf1 {[%emt 0:07:30]} 0-1

[Event "28th CRO-chT 1B-Men 2019"]
[Site "Mali Losinj"]
[Date "2019.10.02"]
[Round "5.11"]
[White "Pucovski, Miroslav"]
[Black "Levacic, Patrick"]
[Result "1/2-1/2"]
[ECO "C02"]
[WhiteElo "2238"]
[BlackElo "2245"]
[Annotator "NA"]
[PlyCount "20"]
[EventDate "2019.09.28"]
[EventType "team-tourn"]
[EventCountry "CRO"]
[SourceTitle "playchess.com"]
[Source "ChessBase"]
[SourceQuality "1"]
[TimeControl "40/5400+30:1800+30"]

1. e4 {[%emt 0:00:30]} e6 {[%emt 0:00:30]} 2. d4 {[%emt 0:00:00]} d5 {[%emt 0:00:30]} 3. e5 {[%emt 0:00:00]} c5 {[%emt 0:00:30]} 4. c3 {[%emt 0:00:00]} Nc6 {[%emt 0:00:00]} 5. Nf3 {[%emt 0:00:00]} Bd7 {[%emt 0:00:00]} 6. Be2 {[%emt 0:04:30]} Nge7 {[%emt 0:02:30]} 7. Na3 {[%emt 0:02:30]} cxd4 {[%emt 0:13:30]} 8. cxd4 {[%emt 0:00:30]} Nf5 {[%emt 0:01:30]} 9. Nc2 {[%emt 0:00:00]} Qb6 {[%emt 0:04:30]} 10. O-O {[%emt 0:11:00]} Be7 {[%emt 0:08:30]} 1/2-1/2

[Event "28th CRO-chT 1B-Men 2019"]
[Site "Mali Losinj"]
[Date "2019.10.02"]
[Round "5.12"]
[White "Ivankovic, Ivo"]
[Black "Bubalovic, Davorin"]
[Result "1/2-1/2"]
[ECO "A24"]
[WhiteElo "2054"]
[BlackElo "2212"]
[Annotator "NA"]
[PlyCount "62"]
[EventDate "2019.09.28"]
[EventType "team-tourn"]
[EventCountry "CRO"]
[SourceTitle "playchess.com"]
[Source "ChessBase"]
[SourceQuality "1"]
[TimeControl "40/5400+30:1800+30"]

1. c4 {[%emt 0:00:30]} Nf6 {[%emt 0:00:30]} 2. Nc3 {[%emt 0:00:30]} g6 {[%emt 0:00:00]} 3. Nf3 {[%emt 0:00:30]} Bg7 {[%emt 0:00:00]} 4. g3 {[%emt 0:00:00]} d6 {[%emt 0:00:30]} 5. Bg2 {[%emt 0:00:00]} O-O {[%emt 0:00:30]} 6. O-O {[%emt 0:00:30]} e5 {[%emt 0:00:30]} 7. d3 {[%emt 0:00:30]} c6 {[%emt 0:00:30]} 8. c5 {[%emt 0:06:30]} Re8 {[%emt 0:05:30]} 9. cxd6 {[%emt 0:05:30]} Qxd6 {[%emt 0:00:30]} 10. Qa4 {[%emt 0:06:30]} Na6 {[%emt 0:03:30]} 11. Qh4 {[%emt 0:05:30]} Nc5 {[%emt 0:06:30]} 12. Bh6 {[%emt 0:11:30]} Bh8 {[%emt 0:03:30]} 13. Ng5 {[%emt 0:12:30]} Qd4 {[%emt 0:11:30]} 14. Nf3 {[%emt 0:14:30]} Qxh4 {[%emt 0:02:30]} 15. Nxh4 {[%emt 0:05:30]} Ne6 {[%emt 0:08:30]} 16. Bd2 {[%emt 0:00:30]} Bd7 {[%emt 0:01:30]} 17. Rac1 {[%emt 0:00:30]} Rac8 {[%emt 0:01:30]} 18. b4 {[%emt 0:01:30]} Bg7 {[%emt 0:01:30]} 19. Rfe1 {[%emt 0:03:30]} Bf8 {[%emt 0:01:30]} 20. a3 {[%emt 0:00:30]} Nd4 {[%emt 0:04:30]} 21. Bg5 {[%emt 0:03:30]} Kg7 {[%emt 0:02:30]} 22. Bxf6+ {[%emt 0:01:43]} Kxf6 {[%emt 0:00:30]} 23. Ne4+ {[%emt 0:00:03]} Kg7 {[%emt 0:06:30]} 24. Nc5 {[%emt 0:00:14]} Bg4 {[%emt 0:03:30]} 25. f3 {[%emt 0:00:57]} b6 {[%emt 0:05:30]} 26. fxg4 {[%emt 0:04:20]} bxc5 {[%emt 0:00:00]} 27. bxc5 {[%emt 0:00:07]} a5 {[%emt 0:02:00]} 28. Rc4 {[%emt 0:01:12]} Nb3 {[%emt 0:01:30]} 29. a4 {[%emt 0:03:22]} Bxc5+ {[%emt 0:01:30]} 30. Kh1 {[%emt 0:00:29]} Bb4 {[%emt 0:01:30]} 31. Rd1 {[%emt 0:00:47]} c5 {[%emt 0:10:11]} 1/2-1/2

[Event "28th CRO-chT 1B-Men 2019"]
[Site "Mali Losinj"]
[Date "2019.10.02"]
[Round "5.13"]
[White "Ruck, Robert"]
[Black "Ivic, Velimir"]
[Result "1/2-1/2"]
[ECO "B31"]
[WhiteElo "2530"]
[BlackElo "2525"]
[Annotator "ChessBase"]
[PlyCount "52"]
[EventDate "2019.09.28"]
[EventType "team-tourn"]
[EventCountry "CRO"]
[SourceTitle "playchess.com"]
[Source "ChessBase"]
[SourceQuality "1"]
[TimeControl "40/5400+30:1800+30"]

1. e4 {[%emt 0:00:30]} c5 {[%emt 0:00:30]} 2. Nf3 {[%emt 0:00:30]} Nc6 {[%emt 0:00:30]} 3. Bb5 {[%emt 0:00:30]} g6 {[%emt 0:00:00]} 4. O-O {[%emt 0:00:00]} Bg7 {[%emt 0:00:00]} 5. c3 {[%emt 0:00:00]} e5 {[%emt 0:01:30]} 6. d4 {[%emt 0:01:30]} cxd4 {[%emt 0:00:00]} 7. cxd4 {[%emt 0:00:30]} exd4 {[%emt 0:00:00]} 8. Bf4 {[%emt 0:00:30]} a6 {[%emt 0:00:00]} 9. Qa4 {[%emt 0:00:30]} Nge7 {[%emt 0:04:00]} 10. Bd6 {[%emt 0:00:30]} Ra7 {[%emt 0:04:30]} 11. Bd3 {[%emt 0:01:30]} O-O {[%emt 0:33:30]} 12. Nbd2 {[%emt 0:02:30]} b5 {[%emt 0:01:30]} 13. Qd1 {[%emt 0:15:30]} Bb7 {[%emt 0:03:30]} 14. a4 {[%emt 0:01:30]} bxa4 {[%emt 0:14:30]} 15. Qxa4 {[%emt 0:15:30]} a5 {[%emt 0:06:30]} 16. Rfd1 {[%emt 0:05:30]} h6 {[%emt 0:07:31]} 17. Nb3 {[%emt 0:13:30]} Re8 {[%emt 0:04:27]} 18. Nbxd4 {[%emt 0:18:55]} Nxd4 {[%emt 0:01:05]} 19. Nxd4 {[%emt 0:00:12]} Qb6 {[%emt 0:01:51]} 20. Nb5 {[%emt 0:07:48]} Bc6 {[%emt 0:03:28]} 21. Qa3 {[%emt 0:00:23]} Bxb5 {[%emt 0:02:18]} 22. Bc5 {[%emt 0:00:11]} Qb7 {[%emt 0:00:28]} 23. Bxb5 {[%emt 0:01:32]} Raa8 {[%emt 0:00:14]} 24. Qa4 {[%emt 0:01:59]} Nc6 {[%emt 0:01:15]} 25. Be3 {[%emt 0:07:15]} Rab8 {[%emt 0:03:00]} 26. Bxc6 {[%emt 0:03:20]} Qxc6 {[%emt 0:03:01]} 1/2-1/2

[Event "28th CRO-chT 1B-Men 2019"]
[Site "Mali Losinj"]
[Date "2019.10.02"]
[Round "5.14"]
[White "Doric, Darko"]
[Black "Horvath, Adam"]
[Result "1-0"]
[ECO "D03"]
[WhiteElo "2476"]
[BlackElo "2489"]
[Annotator "ChessBase"]
[PlyCount "79"]
[EventDate "2019.09.28"]
[EventType "team-tourn"]
[EventCountry "CRO"]
[SourceTitle "playchess.com"]
[Source "ChessBase"]
[SourceQuality "1"]
[TimeControl "40/5400+30:1800+30"]

1. d4 {[%emt 0:00:30]} Nf6 {[%emt 0:00:30]} 2. Bg5 {[%emt 0:03:30]} e6 {[%emt 0:00:30]} 3. e3 {[%emt 0:00:30]} c5 {[%emt 0:02:30]} 4. Nd2 {[%emt 0:00:30]} d5 {[%emt 0:03:30]} 5. c3 {[%emt 0:00:00]} Nc6 {[%emt 0:02:30]} 6. Ngf3 {[%emt 0:00:00]} h6 {[%emt 0:02:30]} 7. Bh4 {[%emt 0:00:30]} Be7 {[%emt 0:09:30]} 8. Bd3 {[%emt 0:00:30]} cxd4 {[%emt 0:03:30]} 9. exd4 {[%emt 0:00:30]} Nh5 {[%emt 0:00:30]} 10. Bxe7 {[%emt 0:03:30]} Qxe7 {[%emt 0:00:00]} 11. O-O {[%emt 0:01:30]} Nf4 {[%emt 0:00:00]} 12. Bc2 {[%emt 0:01:30]} Qf6 {[%emt 0:22:30]} 13. g3 {[%emt 0:00:30]} Ng6 {[%emt 0:00:30]} 14. Qe2 {[%emt 0:10:30]} O-O {[%emt 0:00:30]} 15. h4 {[%emt 0:03:30]} e5 {[%emt 0:25:30]} 16. h5 {[%emt 0:08:30]} Bg4 {[%emt 0:14:04]} 17. hxg6 {[%emt 0:08:30]} e4 {[%emt 0:01:31]} 18. Qb5 {[%emt 0:00:30]} exf3 {[%emt 0:08:06]} 19. Qxd5 {[%emt 0:00:30]} Rae8 {[%emt 0:00:23]} 20. gxf7+ {[%emt 0:01:30]} Rxf7 {[%emt 0:00:10]} 21. Ne4 {[%emt 0:02:30]} Qf5 {[%emt 0:00:17]} 22. Qxf5 {[%emt 0:00:30]} Bxf5 {[%emt 0:00:08]} 23. Nd6 {[%emt 0:00:30]} Bxc2 {[%emt 0:00:41]} 24. Nxe8 {[%emt 0:00:00]} Rd7 {[%emt 0:00:45]} 25. Rfe1 {[%emt 0:02:00]} Kf8 {[%emt 0:01:21]} 26. d5 {[%emt 0:01:30]} Na5 {[%emt 0:00:25]} 27. d6 {[%emt 0:00:30]} Nc4 {[%emt 0:00:21]} 28. b3 {[%emt 0:12:30]} Na3 {[%emt 0:00:37]} 29. Nc7 {[%emt 0:00:30]} Rxd6 {[%emt 0:00:31]} 30. Ne6+ {[%emt 0:01:30]} Kg8 {[%emt 0:00:30]} 31. Nd4 {[%emt 0:00:00]} Bg6 {[%emt 0:00:24]} 32. Re7 {[%emt 0:02:00]} Nb1 {[%emt 0:00:28]} 33. Nxf3 {[%emt 0:02:30]} Nxc3 {[%emt 0:00:39]} 34. Rc1 {[%emt 0:04:30]} Rc6 {[%emt 0:00:06]} 35. Kh2 {[%emt 0:02:30]} Nxa2 {[%emt 0:00:17]} 36. Rd1 {[%emt 0:01:30]} Bh5 {[%emt 0:00:59]} 37. Rd8+ {[%emt 0:00:30]} Kh7 {[%emt 0:00:03]} 38. Ne5 {[%emt 0:00:30]} Rf6 {[%emt 0:01:04]} 39. Rdd7 {[%emt 0:00:00]} Rxf2+ {[%emt 0:00:10]} 40. Kg1 {[%emt 0:00:00]} 1-0

[Event "28th CRO-chT 1B-Men 2019"]
[Site "Mali Losinj"]
[Date "2019.10.02"]
[Round "5.15"]
[White "Dabo-Peranic, Robert"]
[Black "Plenkovic, Zdenko"]
[Result "1-0"]
[ECO "B01"]
[WhiteElo "2323"]
[BlackElo "2368"]
[Annotator "NA"]
[PlyCount "60"]
[EventDate "2019.09.28"]
[EventType "team-tourn"]
[EventCountry "CRO"]
[SourceTitle "playchess.com"]
[Source "ChessBase"]
[SourceQuality "1"]
[TimeControl "40/5400+30:1800+30"]

1. e4 {[%emt 0:00:30]} d5 {[%emt 0:03:30]} 2. exd5 {[%emt 0:00:00]} Qxd5 {[%emt 0:00:30]} 3. Nc3 {[%emt 0:00:00]} Qd6 {[%emt 0:00:30]} 4. d4 {[%emt 0:00:00]} Nf6 {[%emt 0:00:00]} 5. Nf3 {[%emt 0:00:00]} g6 {[%emt 0:00:00]} 6. Nb5 {[%emt 0:00:30]} Qb6 {[%emt 0:00:00]} 7. c4 {[%emt 0:01:30]} c6 {[%emt 0:00:00]} 8. Nc3 {[%emt 0:00:00]} Bg7 {[%emt 0:00:30]} 9. Be2 {[%emt 0:00:00]} O-O {[%emt 0:01:30]} 10. O-O {[%emt 0:00:00]} c5 {[%emt 0:10:30]} 11. Na4 {[%emt 0:01:00]} Qc7 {[%emt 0:00:00]} 12. Nxc5 {[%emt 0:00:30]} Nc6 {[%emt 0:06:00]} 13. Nb3 {[%emt 0:53:30]} Rd8 {[%emt 0:21:30]} 14. Be3 {[%emt 0:00:30]} a5 {[%emt 0:14:30]} 15. h3 {[%emt 0:00:30]} a4 {[%emt 0:04:30]} 16. Nbd2 {[%emt 0:00:30]} Nh5 {[%emt 0:03:30]} 17. d5 {[%emt 0:06:30]} a3 {[%emt 0:03:30]} 18. bxa3 {[%emt 0:04:30]} Bxa1 {[%emt 0:07:30]} 19. Qxa1 {[%emt 0:01:30]} Nb8 {[%emt 0:00:30]} 20. Rb1 {[%emt 0:01:30]} Nd7 {[%emt 0:01:30]} 21. Nd4 {[%emt 0:00:30]} Qe5 {[%emt 0:03:34]} 22. g4 {[%emt 0:01:30]} Nf4 {[%emt 0:09:01]} 23. Bf1 {[%emt 0:00:30]} Rxa3 {[%emt 0:00:00]} 24. N2f3 {[%emt 0:07:14]} Qe4 {[%emt 0:03:38]} 25. Nd2 {[%emt 0:07:09]} Qe5 {[%emt 0:00:25]} 26. N2f3 {[%emt 0:03:22]} Qe4 {[%emt 0:00:07]} 27. Ng5 {[%emt 0:00:05]} Qe5 {[%emt 0:00:13]} 28. Bxf4 {[%emt 0:01:02]} Qxf4 {[%emt 0:00:11]} 29. Nde6 {[%emt 0:00:11]} fxe6 {[%emt 0:03:13]} 30. Nxe6 {[%emt 0:00:02]} Qf6 {[%emt 0:04:38]} 1-0